[Event "24th European Women Club Cup 2019"]
[Site "Ulcinj"]
[Date "2019.11.12"]
[Round "3.4"]
[White "Osmak, Iulija"]
[Black "Daulyte-Cornette, Deimante"]
[Result "1/2-1/2"]
[ECO "E73"]
[WhiteElo "2401"]
[BlackElo "2405"]
[Annotator "NA"]
[PlyCount "154"]
[EventDate "2019.11.10"]
[EventType "team-tourn"]
[EventCountry "MNE"]
[SourceTitle "playchess.com"]
[Source "ChessBase"]
[SourceQuality "1"]
[WhiteTeam "Kyiv"]
[BlackTeam "Cercle d`Echecs"]
[TimeControl "40/5400+30:1800+30"]

1. d4 {[%emt 0:00:00]} Nf6 {[%emt 0:00:00]} 2. c4 {[%emt 0:00:00]} g6 {[%emt 0:00:00]} 3. Nc3 {[%emt 0:00:00]} Bg7 {[%emt 0:00:12]} 4. e4 {[%emt 0:00:21]} d6 {[%emt 0:00:18]} 5. Be2 {[%emt 0:00:11]} O-O {[%emt 0:01:19]} 6. Be3 {[%emt 0:00:08]} e5 {[%emt 0:02:05]} 7. d5 {[%emt 0:00:12]} a5 {[%emt 0:03:05]} 8. g4 {[%emt 0:03:37]} Ne8 {[%emt 0:03:36]} 9. g5 {[%emt 0:09:10]} f5 {[%emt 0:07:13]} 10. gxf6 {[%emt 0:01:05]} Nxf6 {[%emt 0:04:29]} 11. h4 {[%emt 0:01:36]} Qe8 {[%emt 0:01:46]} 12. h5 {[%emt 0:08:00]} Nxh5 {[%emt 0:02:05]} 13. Bxh5 {[%emt 0:00:54]} gxh5 {[%emt 0:00:07]} 14. Rxh5 {[%emt 0:07:34]} Nd7 {[%emt 0:09:07]} 15. Qe2 {[%emt 0:06:36]} Nf6 {[%emt 0:15:55]} 16. Rg5 {[%emt 0:01:35]} Kh8 {[%emt 0:03:24]} 17. O-O-O {[%emt 0:00:37]} Qf7 {[%emt 0:11:57]} 18. Rg2 {[%emt 0:11:38]} Bd7 {[%emt 0:09:38]} 19. Kb1 {[%emt 0:11:25]} Nh5 {[%emt 0:01:05]} 20. Rh2 {[%emt 0:00:35]} Nf4 {[%emt 0:00:24]} 21. Qc2 {[%emt 0:03:21]} Bg4 {[%emt 0:03:08]} 22. Nge2 {[%emt 0:05:32]} Bf3 {[%emt 0:08:00]} 23. Rg1 {[%emt 0:02:53]} Bh5 {[%emt 0:06:10]} 24. Ng3 {[%emt 0:06:17]} Bg6 {[%emt 0:00:10]} 25. Qb3 {[%emt 0:03:04]} c6 {[%emt 0:01:15]} 26. Ka1 {[%emt 0:02:25]} b5 {[%emt 0:01:23]} 27. cxb5 {[%emt 0:00:33]} cxd5 {[%emt 0:01:03]} 28. Nxd5 {[%emt 0:10:27]} a4 {[%emt 0:00:11]} 29. Qa3 {[%emt 0:02:46]} Nxd5 {[%emt 0:00:27]} 30. exd5 {[%emt 0:00:02]} Qxd5 {[%emt 0:00:13]} 31. Nh5 {[%emt 0:00:26]} Rf3 {[%emt 0:04:39]} 32. Nxg7 {[%emt 0:00:54]} Kxg7 {[%emt 0:00:05]} 33. Rhh1 {[%emt 0:01:35]} Rf6 {[%emt 0:01:14]} 34. Rd1 {[%emt 0:00:41]} Qxb5 {[%emt 0:00:32]} 35. Rxd6 {[%emt 0:00:20]} Rf7 {[%emt 0:00:36]} 36. Bh6+ {[%emt 0:00:50]} Kg8 {[%emt 0:00:05]} 37. Qg3 {[%emt 0:00:12]} Qb7 {[%emt 0:00:36]} 38. Rg1 {[%emt 0:00:23]} Qe4 {[%emt 0:00:15]} 39. Rgd1 {[%emt 0:00:50]} Re8 {[%emt 0:00:34]} 40. Re6 {[%emt 0:00:00]} Rc8 {[%emt 0:00:00]} 41. Rxe5 {[%emt 0:13:34]} Qc2 {[%emt 0:12:43]} 42. Red5 {[%emt 0:02:21]} Re8 {[%emt 0:12:01]} 43. R5d2 {[%emt 0:06:58]} Qc5 {[%emt 0:04:20]} 44. Rd6 {[%emt 0:02:29]} Qh5 {[%emt 0:02:19]} 45. Qe3 {[%emt 0:06:50]} Rfe7 {[%emt 0:01:38]} 46. Qc1 {[%emt 0:00:19]} a3 {[%emt 0:00:51]} 47. Qc4+ {[%emt 0:00:28]} Rf7 {[%emt 0:00:26]} 48. Bc1 {[%emt 0:01:07]} Qf5 {[%emt 0:00:19]} 49. R6d3 {[%emt 0:00:11]} Qxf2 {[%emt 0:00:50]} 50. Rxa3 {[%emt 0:00:27]} Qf5 {[%emt 0:00:35]} 51. Rad3 {[%emt 0:00:28]} Qf2 {[%emt 0:00:34]} 52. Rd7 {[%emt 0:00:44]} Qf5 {[%emt 0:00:23]} 53. Bh6 {[%emt 0:00:51]} Qf3 {[%emt 0:00:36]} 54. a3 {[%emt 0:00:50]} Qh5 {[%emt 0:00:25]} 55. Rg1 {[%emt 0:00:28]} Qf5 {[%emt 0:00:22]} 56. Rc7 {[%emt 0:00:15]} Kh8 {[%emt 0:00:28]} 57. Bd2 {[%emt 0:00:42]} Rxc7 {[%emt 0:00:27]} 58. Bc3+ {[%emt 0:00:12]} Rg7 {[%emt 0:00:12]} 59. Qc7 {[%emt 0:00:31]} Qf8 {[%emt 0:00:28]} 60. Qc6 {[%emt 0:00:54]} Kg8 {[%emt 0:00:24]} 61. Qd5+ {[%emt 0:00:27]} Qf7 {[%emt 0:00:46]} 62. Qd4 {[%emt 0:00:12]} Rc8 {[%emt 0:00:40]} 63. a4 {[%emt 0:00:37]} Rxc3 {[%emt 0:00:21]} 64. Qxc3 {[%emt 0:00:03]} Qc7 {[%emt 0:00:35]} 65. Qxc7 {[%emt 0:01:14]} Rxc7 {[%emt 0:00:04]} 66. Ka2 {[%emt 0:00:18]} Kf7 {[%emt 0:00:10]} 67. b4 {[%emt 0:00:11]} Bc2 {[%emt 0:00:41]} 68. Ka3 {[%emt 0:00:44]} Ra7 {[%emt 0:00:48]} 69. a5 {[%emt 0:00:07]} Ke6 {[%emt 0:00:18]} 70. Rc1 {[%emt 0:00:17]} Bd3 {[%emt 0:00:16]} 71. Ka4 {[%emt 0:00:32]} Rb7 {[%emt 0:00:11]} 72. Rc5 {[%emt 0:00:18]} Kd6 {[%emt 0:00:19]} 73. Rh5 {[%emt 0:00:17]} Bg6 {[%emt 0:00:39]} 74. Rg5 {[%emt 0:01:28]} Be8+ {[%emt 0:01:12]} 75. Kb3 {[%emt 0:00:44]} Bb5 {[%emt 0:00:29]} 76. Rh5 {[%emt 0:00:13]} Ke6 {[%emt 0:00:57]} 77. a6 {[%emt 0:00:18]} Bxa6 {[%emt 0:00:37]} 1/2-1/2

[Event "24th European Women Club Cup 2019"]
[Site "Ulcinj"]
[Date "2019.11.12"]
[Round "3.5"]
[White "Mammadzada, Gunay"]
[Black "Shuvalova, Polina"]
[Result "1-0"]
[ECO "E01"]
[WhiteElo "2427"]
[BlackElo "2434"]
[Annotator "NA"]
[PlyCount "123"]
[EventDate "2019.11.10"]
[EventType "team-tourn"]
[EventCountry "MNE"]
[SourceTitle "playchess.com"]
[Source "ChessBase"]
[SourceQuality "1"]
[WhiteTeam "Odlar Yurdu"]
[BlackTeam "Novy Bor"]
[TimeControl "40/5400+30:1800+30"]

1. d4 {[%emt 0:00:00]} Nf6 {[%emt 0:00:00]} 2. c4 {[%emt 0:00:00]} e6 {[%emt 0:00:00]} 3. g3 {[%emt 0:00:00]} d5 {[%emt 0:00:00]} 4. Bg2 {[%emt 0:00:00]} Bb4+ {[%emt 0:00:00]} 5. Bd2 {[%emt 0:00:18]} Be7 {[%emt 0:00:00]} 6. Nf3 {[%emt 0:00:11]} c6 {[%emt 0:00:07]} 7. Bc3 {[%emt 0:04:21]} Nbd7 {[%emt 0:10:24]} 8. Nbd2 {[%emt 0:06:10]} b6 {[%emt 0:02:43]} 9. Qc2 {[%emt 0:03:43]} Bb7 {[%emt 0:02:07]} 10. O-O {[%emt 0:10:11]} O-O {[%emt 0:00:53]} 11. e4 {[%emt 0:08:06]} dxc4 {[%emt 0:05:20]} 12. Nxc4 {[%emt 0:16:52]} c5 {[%emt 0:00:42]} 13. Rfe1 {[%emt 0:07:28]} cxd4 {[%emt 0:13:04]} 14. Nxd4 {[%emt 0:00:55]} Rc8 {[%emt 0:02:02]} 15. b3 {[%emt 0:03:09]} a6 {[%emt 0:00:33]} 16. Qe2 {[%emt 0:08:18]} b5 {[%emt 0:11:04]} 17. Ba5 {[%emt 0:00:50]} Qe8 {[%emt 0:00:08]} 18. e5 {[%emt 0:04:42]} Bxg2 {[%emt 0:04:33]} 19. exf6 {[%emt 0:00:24]} Nxf6 {[%emt 0:02:18]} 20. Nb6 {[%emt 0:00:58]} Bb7 {[%emt 0:06:46]} 21. Nxc8 {[%emt 0:01:53]} Qxc8 {[%emt 0:00:56]} 22. Rac1 {[%emt 0:08:04]} Qd7 {[%emt 0:03:12]} 23. Red1 {[%emt 0:00:09]} Nd5 {[%emt 0:04:37]} 24. Nf5 {[%emt 0:07:02]} Bd8 {[%emt 0:04:30]} 25. Bxd8 {[%emt 0:01:48]} Qxd8 {[%emt 0:01:32]} 26. Ne3 {[%emt 0:01:06]} Qg5 {[%emt 0:04:47]} 27. Nxd5 {[%emt 0:00:22]} Bxd5 {[%emt 0:00:15]} 28. Rc3 {[%emt 0:01:42]} h6 {[%emt 0:02:36]} 29. f4 {[%emt 0:02:40]} Qd8 {[%emt 0:03:55]} 30. Qe5 {[%emt 0:00:52]} Qa5 {[%emt 0:02:20]} 31. Rc2 {[%emt 0:00:42]} Qb4 {[%emt 0:05:12]} 32. Rd4 {[%emt 0:00:55]} Qa5 {[%emt 0:01:14]} 33. Kf2 {[%emt 0:00:57]} Qb6 {[%emt 0:01:52]} 34. Ke3 {[%emt 0:00:35]} Qa5 {[%emt 0:00:57]} 35. Kf2 {[%emt 0:01:11]} Qb6 {[%emt 0:00:07]} 36. Qe3 {[%emt 0:00:48]} Qd8 {[%emt 0:01:57]} 37. Rdd2 {[%emt 0:00:21]} Qf6 {[%emt 0:00:46]} 38. Qe5 {[%emt 0:00:38]} Qg6 {[%emt 0:02:28]} 39. Rc7 {[%emt 0:00:30]} Qg4 {[%emt 0:00:36]} 40. Qe3 {[%emt 0:00:00]} Qh3 {[%emt 0:00:00]} 41. Ke1 {[%emt 0:05:25]} Qf5 {[%emt 0:10:54]} 42. Kd1 {[%emt 0:03:16]} a5 {[%emt 0:04:03]} 43. Kc1 {[%emt 0:02:32]} a4 {[%emt 0:02:19]} 44. Kb2 {[%emt 0:02:53]} axb3 {[%emt 0:04:06]} 45. axb3 {[%emt 0:00:05]} Ra8 {[%emt 0:05:40]} 46. Rc5 {[%emt 0:02:17]} b4 {[%emt 0:05:13]} 47. Rb5 {[%emt 0:01:57]} Qh3 {[%emt 0:00:35]} 48. Qe2 {[%emt 0:01:10]} h5 {[%emt 0:00:24]} 49. Rxb4 {[%emt 0:01:37]} g6 {[%emt 0:02:13]} 50. Qe5 {[%emt 0:02:23]} h4 {[%emt 0:00:15]} 51. Rb8+ {[%emt 0:02:58]} Rxb8 {[%emt 0:00:21]} 52. Qxb8+ {[%emt 0:00:02]} Kh7 {[%emt 0:01:43]} 53. Qc7 {[%emt 0:03:07]} Kg7 {[%emt 0:01:37]} 54. Qe5+ {[%emt 0:01:05]} Kh7 {[%emt 0:00:28]} 55. Rc2 {[%emt 0:01:37]} Qf1 {[%emt 0:00:32]} 56. Qf6 {[%emt 0:02:12]} Qb5 {[%emt 0:00:25]} 57. Qxf7+ {[%emt 0:00:24]} Kh6 {[%emt 0:00:05]} 58. Qf8+ {[%emt 0:00:04]} Kh5 {[%emt 0:00:05]} 59. Qh8+ {[%emt 0:00:19]} Kg4 {[%emt 0:00:04]} 60. Qxh4+ {[%emt 0:01:48]} Kf3 {[%emt 0:00:01]} 61. Rc3+ {[%emt 0:00:06]} Kg2 {[%emt 0:00:18]} 62. g4 {[%emt 0:00:20]} 1-0

[Event "24th European Women Club Cup 2019"]
[Site "Ulcinj"]
[Date "2019.11.12"]
[Round "3.6"]
[White "Bulmaga, Irina"]
[Black "Fataliyeva, Ulviyya"]
[Result "1-0"]
[ECO "B12"]
[WhiteElo "2435"]
[BlackElo "2368"]
[Annotator "NA"]
[PlyCount "91"]
[EventDate "2019.11.10"]
[EventType "team-tourn"]
[EventCountry "MNE"]
[SourceTitle "playchess.com"]
[Source "ChessBase"]
[SourceQuality "1"]
[WhiteTeam "Novy Bor"]
[BlackTeam "Odlar Yurdu"]
[TimeControl "40/5400+30:1800+30"]

1. e4 {[%emt 0:00:00]} c6 {[%emt 0:00:00]} 2. d4 {[%emt 0:00:00]} d5 {[%emt 0:00:00]} 3. e5 {[%emt 0:00:00]} c5 {[%emt 0:00:00]} 4. dxc5 {[%emt 0:00:15]} e6 {[%emt 0:00:00]} 5. Nf3 {[%emt 0:00:37]} Bxc5 {[%emt 0:00:30]} 6. a3 {[%emt 0:01:03]} Ne7 {[%emt 0:02:09]} 7. b4 {[%emt 0:02:26]} Bb6 {[%emt 0:00:05]} 8. Bd3 {[%emt 0:00:05]} a5 {[%emt 0:00:16]} 9. b5 {[%emt 0:02:58]} Nd7 {[%emt 0:00:08]} 10. O-O {[%emt 0:00:28]} Ng6 {[%emt 0:00:28]} 11. Re1 {[%emt 0:07:04]} Ndxe5 {[%emt 0:02:10]} 12. Nxe5 {[%emt 0:07:22]} Nxe5 {[%emt 0:00:05]} 13. Rxe5 {[%emt 0:02:59]} Bd4 {[%emt 0:00:04]} 14. Rg5 {[%emt 0:14:03]} Bxa1 {[%emt 0:00:06]} 15. c3 {[%emt 0:00:04]} Qf6 {[%emt 0:00:05]} 16. Qe2 {[%emt 0:05:34]} d4 {[%emt 0:06:54]} 17. c4 {[%emt 0:01:09]} h6 {[%emt 0:05:57]} 18. Re5 {[%emt 0:01:16]} Bd7 {[%emt 0:05:05]} 19. Qe4 {[%emt 0:03:55]} Rc8 {[%emt 0:03:14]} 20. a4 {[%emt 0:05:17]} b6 {[%emt 0:05:42]} 21. Ba3 {[%emt 0:02:19]} g5 {[%emt 0:02:30]} 22. Rd5 {[%emt 0:09:11]} Bc3 {[%emt 0:19:59]} 23. Rd6 {[%emt 0:09:49]} Bb4 {[%emt 0:04:12]} 24. Bxb4 {[%emt 0:00:06]} axb4 {[%emt 0:00:06]} 25. Rxb6 {[%emt 0:02:47]} Qf4 {[%emt 0:06:01]} 26. Qe1 {[%emt 0:01:20]} b3 {[%emt 0:03:24]} 27. a5 {[%emt 0:04:19]} b2 {[%emt 0:01:07]} 28. Nd2 {[%emt 0:00:11]} O-O {[%emt 0:15:56]} 29. a6 {[%emt 0:05:45]} Rc5 {[%emt 0:01:27]} 30. g3 {[%emt 0:02:11]} Qc7 {[%emt 0:08:49]} 31. Rb7 {[%emt 0:00:40]} Qc8 {[%emt 0:05:17]} 32. Ne4 {[%emt 0:00:20]} Rxc4 {[%emt 0:00:15]} 33. Nf6+ {[%emt 0:00:22]} Kh8 {[%emt 0:00:07]} 34. Qe4 {[%emt 0:02:41]} Rc1+ {[%emt 0:00:30]} 35. Kg2 {[%emt 0:00:32]} Bc6 {[%emt 0:00:10]} 36. bxc6 {[%emt 0:00:08]} Qxc6 {[%emt 0:00:12]} 37. Qxc6 {[%emt 0:00:41]} Rxc6 {[%emt 0:00:06]} 38. a7 {[%emt 0:01:22]} b1=Q {[%emt 0:04:34]} 39. Rxb1 {[%emt 0:00:40]} Ra8 {[%emt 0:00:55]} 40. Rb8+ {[%emt 0:00:00]} Rc8 {[%emt 0:00:00]} 41. Rxc8+ {[%emt 0:02:33]} Rxc8 {[%emt 0:00:08]} 42. Be4 {[%emt 0:00:06]} d3 {[%emt 0:00:34]} 43. a8=Q {[%emt 0:00:19]} Rxa8 {[%emt 0:00:03]} 44. Bxa8 {[%emt 0:00:06]} d2 {[%emt 0:00:10]} 45. Bf3 {[%emt 0:00:10]} Kg7 {[%emt 0:00:07]} 46. Ne4 {[%emt 0:00:15]} 1-0

[Event "24th European Women Club Cup 2019"]
[Site "Ulcinj"]
[Date "2019.11.12"]
[Round "3.7"]
[White "Balajayeva, Khanim"]
[Black "Hoang, Thanh Trang"]
[Result "1/2-1/2"]
[ECO "C07"]
[WhiteElo "2368"]
[BlackElo "2414"]
[Annotator "NA"]
[PlyCount "66"]
[EventDate "2019.11.10"]
[EventType "team-tourn"]
[EventCountry "MNE"]
[SourceTitle "playchess.com"]
[Source "ChessBase"]
[SourceQuality "1"]
[WhiteTeam "Odlar Yurdu"]
[BlackTeam "Novy Bor"]
[TimeControl "40/5400+30:1800+30"]

1. e4 {[%emt 0:00:00]} e6 {[%emt 0:00:00]} 2. d4 {[%emt 0:00:01]} d5 {[%emt 0:00:00]} 3. Nd2 c5 {[%emt 0:03:46]} 4. exd5 {[%emt 0:00:00]} Qxd5 {[%emt 0:00:30]} 5. dxc5 {[%emt 0:00:30]} Nf6 {[%emt 0:01:05]} 6. Ngf3 {[%emt 0:01:22]} Qxc5 {[%emt 0:01:01]} 7. Bd3 {[%emt 0:03:33]} Nbd7 {[%emt 0:04:28]} 8. O-O {[%emt 0:01:34]} Be7 {[%emt 0:01:20]} 9. Qe2 {[%emt 0:10:42]} O-O {[%emt 0:02:04]} 10. Ne4 {[%emt 0:00:56]} Nxe4 {[%emt 0:13:28]} 11. Qxe4 {[%emt 0:00:35]} Nf6 {[%emt 0:01:03]} 12. Qh4 {[%emt 0:04:42]} Bd7 {[%emt 0:04:43]} 13. Be3 {[%emt 0:01:47]} Qh5 {[%emt 0:08:30]} 14. Qxh5 {[%emt 0:01:24]} Nxh5 {[%emt 0:00:09]} 15. Ne5 {[%emt 0:00:13]} Rfd8 {[%emt 0:03:26]} 16. Be4 {[%emt 0:15:00]} Nf6 {[%emt 0:04:41]} 17. Bxb7 {[%emt 0:04:37]} Rab8 {[%emt 0:00:18]} 18. Bc6 {[%emt 0:00:09]} Rxb2 {[%emt 0:02:45]} 19. Bxd7 Nxd7 {[%emt 0:01:07]} 20. Nc6 {[%emt 0:09:37]} Re8 {[%emt 0:00:27]} 21. c4 {[%emt 0:05:47]} Bc5 {[%emt 0:07:25]} 22. Bxc5 {[%emt 0:04:57]} Nxc5 {[%emt 0:00:12]} 23. Rfb1 {[%emt 0:02:23]} Rxb1+ {[%emt 0:03:17]} 24. Rxb1 {[%emt 0:00:02]} a6 {[%emt 0:00:27]} 25. Kf1 {[%emt 0:02:46]} Kf8 {[%emt 0:01:26]} 26. Rb6 {[%emt 0:03:31]} Rc8 {[%emt 0:00:30]} 27. Ke2 {[%emt 0:00:30]} f6 {[%emt 0:12:13]} 28. Na5 {[%emt 0:13:41]} Ke7 {[%emt 0:01:53]} 29. f4 {[%emt 0:03:59]} Kd7 {[%emt 0:03:37]} 30. Ke3 {[%emt 0:01:45]} Kc7 {[%emt 0:10:31]} 31. Rc6+ {[%emt 0:00:27]} Kd7 {[%emt 0:00:07]} 32. Rb6 {[%emt 0:03:36]} Kc7 {[%emt 0:00:09]} 33. Rc6+ {[%emt 0:01:44]} Kd7 {[%emt 0:00:30]} 1/2-1/2

[Event "24th European Women Club Cup 2019"]
[Site "Ulcinj"]
[Date "2019.11.12"]
[Round "3.8"]
[White "Rodshtein, Tereza"]
[Black "Mamedjarova, Zeinab"]
[Result "1/2-1/2"]
[ECO "B01"]
[WhiteElo "2195"]
[BlackElo "2280"]
[Annotator "NA"]
[PlyCount "141"]
[EventDate "2019.11.10"]
[EventType "team-tourn"]
[EventCountry "MNE"]
[SourceTitle "playchess.com"]
[Source "ChessBase"]
[SourceQuality "1"]
[WhiteTeam "Novy Bor"]
[BlackTeam "Odlar Yurdu"]
[TimeControl "40/5400+30:1800+30"]

1. e4 {[%emt 0:00:00]} d5 {[%emt 0:00:00]} 2. exd5 {[%emt 0:00:00]} Qxd5 {[%emt 0:00:00]} 3. Nc3 {[%emt 0:00:28]} Qd8 {[%emt 0:00:00]} 4. d4 {[%emt 0:04:51]} Nf6 {[%emt 0:00:00]} 5. Nf3 {[%emt 0:03:45]} e6 {[%emt 0:00:11]} 6. Bc4 {[%emt 0:03:33]} Be7 {[%emt 0:00:09]} 7. O-O {[%emt 0:00:31]} O-O {[%emt 0:00:02]} 8. Bf4 {[%emt 0:07:11]} a6 {[%emt 0:01:58]} 9. a4 {[%emt 0:01:39]} Nc6 {[%emt 0:02:55]} 10. Re1 {[%emt 0:03:08]} Nd5 {[%emt 0:03:11]} 11. Bg3 {[%emt 0:05:40]} Nxc3 {[%emt 0:10:30]} 12. bxc3 {[%emt 0:00:08]} Bf6 {[%emt 0:11:21]} 13. Qd2 {[%emt 0:02:45]} Bd7 {[%emt 0:27:17]} 14. Bd3 {[%emt 0:08:23]} Rc8 {[%emt 0:08:47]} 15. a5 {[%emt 0:12:28]} Ne7 {[%emt 0:02:44]} 16. Be4 {[%emt 0:00:13]} Bc6 {[%emt 0:04:43]} 17. Qd3 {[%emt 0:07:30]} Bxe4 {[%emt 0:01:58]} 18. Qxe4 {[%emt 0:00:15]} Qd5 {[%emt 0:02:24]} 19. Qxd5 {[%emt 0:02:02]} Nxd5 {[%emt 0:00:04]} 20. c4 {[%emt 0:01:02]} Nb4 {[%emt 0:03:25]} 21. Re2 {[%emt 0:01:29]} c5 {[%emt 0:08:56]} 22. c3 {[%emt 0:04:45]} cxd4 {[%emt 0:04:26]} 23. cxb4 {[%emt 0:08:01]} d3 {[%emt 0:00:04]} 24. Ree1 {[%emt 0:00:15]} Bxa1 {[%emt 0:00:17]} 25. Rxa1 {[%emt 0:00:07]} Rxc4 {[%emt 0:00:07]} 26. Ne5 {[%emt 0:04:40]} Rc3 {[%emt 0:04:31]} 27. Bf4 {[%emt 0:12:32]} f6 {[%emt 0:00:12]} 28. Nf3 {[%emt 0:01:28]} e5 {[%emt 0:00:15]} 29. Be3 {[%emt 0:00:58]} Rd8 {[%emt 0:01:25]} 30. Kf1 {[%emt 0:01:14]} Kf7 {[%emt 0:00:55]} 31. Ke1 {[%emt 0:00:33]} Ke6 {[%emt 0:01:10]} 32. Kd1 {[%emt 0:02:03]} g5 {[%emt 0:00:48]} 33. Rc1 {[%emt 0:01:25]} Rxc1+ {[%emt 0:00:05]} 34. Bxc1 {[%emt 0:00:35]} e4 {[%emt 0:01:15]} 35. Nd2 {[%emt 0:00:38]} f5 {[%emt 0:00:26]} 36. g4 {[%emt 0:00:32]} Rf8 {[%emt 0:00:40]} 37. gxf5+ {[%emt 0:00:32]} Kxf5 {[%emt 0:00:08]} 38. Nf1 {[%emt 0:00:37]} Kg4 {[%emt 0:00:58]} 39. Be3 {[%emt 0:00:15]} Rf6 {[%emt 0:00:36]} 40. Ng3 {[%emt 0:00:00]} Re6 {[%emt 0:00:00]} 41. Kd2 {[%emt 0:08:40]} Kf3 {[%emt 0:03:19]} 42. Nf5 {[%emt 0:02:48]} Rf6 {[%emt 0:03:25]} 43. Nd4+ {[%emt 0:01:19]} Kg2 {[%emt 0:00:54]} 44. Nb3 {[%emt 0:00:58]} g4 {[%emt 0:18:00]} 45. Nc5 {[%emt 0:00:18]} Kxh2 {[%emt 0:00:34]} 46. Nxe4 {[%emt 0:03:57]} Rf7 {[%emt 0:00:02]} 47. Kxd3 {[%emt 0:00:10]} h5 {[%emt 0:01:11]} 48. Kd4 {[%emt 0:02:20]} h4 {[%emt 0:01:12]} 49. Nd6 {[%emt 0:03:22]} Rf8 {[%emt 0:01:40]} 50. Nxb7 {[%emt 0:05:10]} Kg2 {[%emt 0:00:35]} 51. Nc5 {[%emt 0:00:15]} h3 {[%emt 0:02:04]} 52. Ne6 {[%emt 0:00:07]} Rf6 {[%emt 0:02:07]} 53. Nf4+ {[%emt 0:00:27]} Kf3 {[%emt 0:00:26]} 54. Nh5 {[%emt 0:00:28]} Rf5 {[%emt 0:01:01]} 55. Ng3 {[%emt 0:00:21]} Rb5 {[%emt 0:00:55]} 56. Kc4 {[%emt 0:00:24]} h2 {[%emt 0:00:12]} 57. Bc5 {[%emt 0:01:53]} Kg2 {[%emt 0:00:34]} 58. Kd5 {[%emt 0:00:57]} Rb8 {[%emt 0:00:32]} 59. Kc6 {[%emt 0:01:10]} Rh8 {[%emt 0:00:30]} 60. b5 {[%emt 0:00:31]} Rh6+ {[%emt 0:01:13]} 61. Kb7 {[%emt 0:01:05]} axb5 {[%emt 0:00:20]} 62. a6 {[%emt 0:00:01]} Rh7+ {[%emt 0:00:31]} 63. Kb6 {[%emt 0:00:48]} b4 {[%emt 0:00:44]} 64. a7 {[%emt 0:01:06]} Rh8 {[%emt 0:00:32]} 65. Bd6 {[%emt 0:01:38]} Ra8 {[%emt 0:00:32]} 66. Bxb4 {[%emt 0:02:06]} Kxf2 {[%emt 0:00:10]} 67. Bd6 {[%emt 0:00:32]} Kg2 {[%emt 0:00:37]} 68. Kb7 {[%emt 0:00:12]} Rxa7+ {[%emt 0:00:38]} 69. Kxa7 {[%emt 0:00:05]} h1=Q {[%emt 0:00:16]} 70. Nxh1 {[%emt 0:00:03]} Kxh1 {[%emt 0:00:05]} 71. Kb6 {[%emt 0:00:05]} 1/2-1/2

[Event "24th European Women Club Cup 2019"]
[Site "Ulcinj"]
[Date "2019.11.12"]
[Round "3.9"]
[White "Injac, Teodora"]
[Black "Khademalsharieh, Sarasadat"]
[Result "1/2-1/2"]
[ECO "E12"]
[WhiteElo "2257"]
[BlackElo "2491"]
[Annotator "ChessBase"]
[PlyCount "79"]
[EventDate "2019.11.10"]
[EventType "team-tourn"]
[EventCountry "MNE"]
[SourceTitle "playchess.com"]
[Source "ChessBase"]
[SourceQuality "1"]
[WhiteTeam "Jelica PEP"]
[BlackTeam "Pentole Agnelli"]
[TimeControl "40/5400+30:1800+30"]

1. d4 {[%emt 0:00:00]} Nf6 {[%emt 0:00:00]} 2. Nf3 {[%emt 0:00:00]} b6 {[%emt 0:00:12]} 3. c4 {[%emt 0:00:17]} e6 {[%emt 0:01:39]} 4. a3 {[%emt 0:00:31]} Bb7 {[%emt 0:00:20]} 5. Nc3 {[%emt 0:00:28]} Ne4 {[%emt 0:00:13]} 6. Nxe4 {[%emt 0:00:44]} Bxe4 {[%emt 0:00:07]} 7. Nd2 {[%emt 0:00:24]} Bb7 {[%emt 0:00:07]} 8. e4 {[%emt 0:04:59]} d6 {[%emt 0:05:37]} 9. Be2 {[%emt 0:10:13]} Nd7 {[%emt 0:01:43]} 10. O-O {[%emt 0:01:05]} g6 {[%emt 0:06:22]} 11. d5 {[%emt 0:04:18]} Bg7 {[%emt 0:01:02]} 12. Rb1 {[%emt 0:13:04]} a5 {[%emt 0:03:46]} 13. b4 {[%emt 0:08:52]} axb4 {[%emt 0:00:06]} 14. axb4 {[%emt 0:00:04]} O-O {[%emt 0:08:33]} 15. Nf3 {[%emt 0:08:24]} Nf6 {[%emt 0:12:41]} 16. Bd3 {[%emt 0:07:11]} b5 {[%emt 0:02:23]} 17. Re1 {[%emt 0:11:36]} bxc4 {[%emt 0:00:58]} 18. Bxc4 {[%emt 0:00:22]} exd5 {[%emt 0:02:32]} 19. exd5 {[%emt 0:00:07]} Qd7 {[%emt 0:01:27]} 20. Bb2 {[%emt 0:02:08]} Rfe8 {[%emt 0:02:03]} 21. Qd3 {[%emt 0:03:47]} Rxe1+ {[%emt 0:05:14]} 22. Rxe1 {[%emt 0:00:36]} Qf5 {[%emt 0:06:58]} 23. Qxf5 {[%emt 0:00:36]} gxf5 {[%emt 0:00:05]} 24. Nh4 {[%emt 0:04:47]} Nxd5 {[%emt 0:00:48]} 25. Bxg7 {[%emt 0:07:28]} Kxg7 {[%emt 0:00:06]} 26. Nxf5+ {[%emt 0:01:20]} Kf6 {[%emt 0:00:12]} 27. Bxd5 {[%emt 0:01:52]} Bxd5 {[%emt 0:00:05]} 28. Ne3 {[%emt 0:00:06]} Be6 {[%emt 0:01:07]} 29. f4 {[%emt 0:01:13]} c5 {[%emt 0:00:33]} 30. bxc5 {[%emt 0:00:35]} dxc5 {[%emt 0:00:05]} 31. Rc1 {[%emt 0:01:45]} Ra5 {[%emt 0:09:15]} 32. g4 {[%emt 0:02:16]} h6 {[%emt 0:00:13]} 33. Rc3 {[%emt 0:00:56]} Rb5 {[%emt 0:01:14]} 34. Kf2 {[%emt 0:01:21]} Rb2+ {[%emt 0:00:43]} 35. Kf3 {[%emt 0:01:06]} Rxh2 {[%emt 0:01:24]} 36. Rxc5 {[%emt 0:01:22]} Rb2 {[%emt 0:01:30]} 37. Rh5 {[%emt 0:01:21]} Kg7 {[%emt 0:00:16]} 38. Rc5 {[%emt 0:01:05]} Kf6 {[%emt 0:00:21]} 39. Rh5 {[%emt 0:00:04]} Kg7 {[%emt 0:00:04]} 40. Rc5 {[%emt 0:00:00]} 1/2-1/2